bitfinex-derivatives/quotes_BNBF0:USTF0_20250709
["timestamp","ask_amount","ask_price","bid_price","bid_amount"]
[1752088216388,0.26141336,665.86,665.52,1.54315485]
[1752088216585,0.26141336,665.86,665.53,1.54315485]
[1752088216790,0.26141336,665.86,665.51,2.597]
[1752088216991,0.26141336,665.86,665.52,1.54315532]
[1752088217189,0.26141336,665.86,665.53,1.54315532]
[1752088217390,0.26141336,665.86,665.51,2.597]
[1752088217687,0.26141336,665.86,665.52,1.54321974]
[1752088217886,0.26141336,665.86,665.53,1.54321974]
[1752088218092,0.26141336,665.86,665.51,2.597]
[1752088218293,0.26141336,665.86,665.52,1.54328667]
[1752088218587,0.26141336,665.86,665.53,1.54328667]
[1752088218792,0.26141336,665.86,665.51,2.597]
[1752088218991,0.26141336,665.86,665.52,1.54329108]
[1752088219291,0.26141336,665.86,665.53,1.54329108]
[1752088219490,0.26141336,665.86,665.54,1.54329108]
[1752088219692,0.26141336,665.86,665.51,2.597]
[1752088219891,0.26141336,665.86,665.52,1.54337308]
[1752088220091,0.26141336,665.86,665.53,1.54337308]
[1752088220293,0.26141336,665.86,665.54,1.54337308]
[1752088220591,0.26141336,665.86,665.55,1.54337308]
[1752088220791,0.26141336,665.86,665.56,1.54337308]
[1752088221092,0.26141336,665.86,665.57,1.54337308]
[1752088221292,0.26141336,665.86,665.58,1.54337308]
[1752088221491,0.26141336,665.86,665.59,1.54337308]
[1752088221694,0.26141336,665.86,665.51,2.597]
[1752088221888,0.26141336,665.86,665.52,1.54358278]
[1752088222091,0.26141336,665.86,665.53,1.54358278]
[1752088222289,0.26141336,665.86,665.54,1.54358278]
[1752088222491,0.26141336,665.86,665.55,1.54375027]
[1752088222689,0.26141336,665.86,665.56,1.54375027]
[1752088222888,0.26141336,665.86,665.57,1.54375027]
[1752088223195,0.26141336,665.86,665.58,1.54375027]
[1752088223392,0.26141336,665.86,665.59,1.54375027]
[1752088223694,0.26141336,665.86,665.6,1.54375027]
[1752088223890,0.26141336,665.86,665.61,1.54375027]
[1752088224091,0.26141336,665.86,665.62,1.54375027]
[1752088224298,0.26141336,665.86,665.63,1.54375027]
[1752088224594,0.26141336,665.86,665.64,1.54375027]
[1752088224796,0.26141336,665.86,665.65,1.54375027]
[1752088224995,0.26141336,665.86,665.51,2.597]
[1752088225193,0.26141336,665.86,665.52,1.54283641]
[1752088225494,0.26141336,665.86,665.53,1.54283641]
[1752088225694,0.26141336,665.86,665.54,1.54283641]
[1752088225892,0.26141336,665.86,665.55,1.54283641]
[1752088226096,0.26141336,665.86,665.56,1.54283641]
[1752088226397,0.26141336,665.86,665.57,1.54283641]
[1752088226696,0.26141336,665.86,665.58,1.54283641]
[1752088226891,0.26141336,665.86,665.59,1.54283641]
[1752088227094,0.26141336,665.86,665.6,1.54283641]
[1752088227394,0.26141336,665.86,665.51,2.597]
[1752088227395,0.26141336,665.86,665.61,1.54283641]
[1752088227593,0.26141336,665.86,665.62,1.54283641]
[1752088227798,0.26141336,665.86,665.63,1.54283641]
[1752088227995,0.26141336,665.86,665.64,1.54283641]
[1752088228198,0.26141336,665.86,665.51,2.597]
[1752088228397,0.26141336,665.86,665.52,1.5420238]
[1752088228597,0.26141336,665.86,665.53,1.5420238]
[1752088228797,0.26141336,665.86,665.54,1.5420238]
[1752088228996,0.26141336,665.86,665.55,1.5420238]
[1752088229198,0.26141336,665.86,665.51,2.597]
[1752088229199,3.38254203,666.47,665.56,1.5420238]
[1752088229397,0.26137704,665.95,665.57,1.5420238]
[1752088229702,3.38254203,666.5,665.58,1.5420238]
[1752088229905,0.26134072,665.95,665.59,1.5420238]
[1752088230099,3.38254203,666.5,665.6,1.5420238]
[1752088230403,3.38254203,666.5,665.61,1.5420238]
[1752088230702,3.38254203,666.5,665.62,1.5420238]
[1752088230903,3.38254203,666.5,665.63,1.5420238]
[1752088231203,3.38254203,666.51,665.64,1.5420238]
[1752088231404,3.38254203,666.51,665.65,1.5420238]
[1752088231705,0.261326,666.3,665.66,1.5420238]
[1752088231902,0.261326,666.3,665.67,1.5420238]
[1752088232100,0.261326,666.3,665.51,2.597]
[1752088232300,0.261326,666.3,665.52,1.54101147]
[1752088232504,0.261326,666.3,665.53,1.54101147]
[1752088232803,0.261326,666.3,665.54,1.54101147]
[1752088233003,0.261326,666.3,665.55,1.54101147]
[1752088233201,0.261326,666.3,665.56,1.54101147]
[1752088233405,0.261326,666.3,665.57,1.54101147]
[1752088233605,0.261326,666.3,665.58,1.54101147]
[1752088233902,0.261326,666.3,665.59,1.54101147]
[1752088234109,0.261326,666.3,665.6,1.54101147]
[1752088234305,0.261326,666.3,665.61,1.54101147]
[1752088234505,0.261326,666.3,665.62,1.54101147]
[1752088234801,0.261326,666.3,665.63,1.54101147]
[1752088235001,0.261326,666.3,665.64,1.54101147]
[1752088235200,0.261326,666.3,665.65,1.54101147]
[1752088235402,0.261326,666.3,665.51,2.597]
[1752088235600,0.261326,666.3,665.52,1.54010367]
[1752088235802,0.261326,666.3,665.53,1.54010367]
[1752088236002,0.261326,666.3,665.54,1.54010367]
[1752088236302,0.261326,666.3,665.55,1.54010367]
[1752088236502,0.261326,666.3,665.56,1.54010367]
[1752088236702,0.261326,666.3,665.57,1.54010367]
[1752088236902,0.261326,666.3,665.58,1.54010367]
[1752088237105,0.261326,666.3,665.59,1.54010367]
[1752088237305,0.261326,666.3,665.6,1.54010367]
[1752088237507,0.261326,666.3,665.61,1.54010367]
[1752088237802,0.261326,666.3,665.62,1.54010367]
[1752088238006,0.261326,666.3,665.63,1.54010367]
[1752088238203,0.261326,666.3,665.64,1.54010367]
[1752088238404,0.261326,666.3,665.51,2.597]
[1752088238606,0.261326,666.3,665.52,1.53974883]
[1752088238803,0.261326,666.3,665.53,1.53974883]
[1752088239004,3.38254203,666.29,665.54,1.53974883]
[1752088239204,3.38254203,666.29,665.55,1.53974883]
[1752088239406,3.38254203,666.29,665.56,1.53974883]
[1752088239607,3.38254203,666.29,665.57,1.53974883]
[1752088239805,3.38254203,666.29,665.58,1.53974883]
[1752088240013,3.38254203,666.29,665.59,1.53974883]
[1752088240209,3.38254203,666.29,665.51,2.597]
[1752088240210,3.38254203,666.23,665.51,2.597]
[1752088240509,3.38254203,666.23,665.52,1.53945608]
[1752088240707,3.38254203,666.23,665.53,1.53945608]
[1752088240908,3.38254203,666.11,665.54,1.53945608]
[1752088241113,3.38254203,666.11,665.55,1.53945608]
[1752088241312,3.38254203,666.05,665.56,1.53945608]
[1752088241515,3.38254203,666.05,665.37,1.69074951]
[1752088241715,3.38254203,666.05,665.38,1.53937575]
[1752088241917,3.38254203,666.05,665.39,1.53937575]
[1752088242111,3.38254203,666.05,665.37,1.69074951]
[1752088242112,3.38254203,666.05,665.4,1.53937575]
[1752088242316,3.38254203,666.05,665.41,1.53937575]
[1752088242511,3.38254203,666.05,665.42,1.53937575]
[1752088242812,3.38254203,666.05,665.43,1.53937575]
[1752088243016,3.38254203,666.05,665.44,1.53937575]
[1752088243312,3.38254203,666.05,665.45,1.53937575]
[1752088243512,3.38254203,666.05,665.46,1.53937575]
[1752088243714,3.38254203,666.05,665.47,1.53937575]
[1752088243913,3.38254203,666.05,665.48,1.53937575]
[1752088244216,3.38254203,666.05,665.49,1.53937575]
[1752088244417,3.38254203,666.06,665.5,1.53937575]
[1752088244618,3.38254203,666.06,665.51,1.53937575]
[1752088244812,3.38254203,666.06,665.52,1.53937575]
[1752088245012,3.38254203,666.06,665.53,1.53937575]
[1752088245216,3.38254203,666.06,665.54,1.53937575]
[1752088245416,3.38254203,666.06,665.55,1.53937575]
[1752088245618,3.38254203,666.06,665.45,2.497]
[1752088245917,3.38254203,666.06,665.46,1.53912607]
[1752088246113,3.38254203,666.06,665.47,1.53912607]
[1752088246318,3.38254203,666.06,665.48,1.53912607]
[1752088246614,3.38254203,666.06,665.49,1.53912607]
[1752088246819,3.38254203,666.06,665.5,1.53912607]
[1752088247015,3.38254203,666.06,665.51,1.53912607]
[1752088247219,3.38254203,666.06,665.52,1.53912607]
[1752088247416,3.38254203,666.06,665.53,1.53912607]
[1752088247619,3.38254203,666.06,665.54,1.53912607]
[1752088247817,3.38254203,666.06,665.55,1.53912607]
[1752088248018,3.38254203,666.06,665.45,2.497]
[1752088248316,3.38254203,666.06,665.46,1.53904118]
[1752088248518,3.38254203,666.06,665.47,1.53904118]
[1752088248717,3.38254203,666.06,665.48,1.53904118]
[1752088248921,3.38254203,666.06,665.49,1.53904118]
[1752088249120,3.38254203,666.06,665.5,1.53904118]
[1752088249320,3.38254203,666.06,665.51,1.53904118]
[1752088249520,3.38254203,666.06,665.52,1.53904118]
[1752088249720,3.38254203,666.06,665.53,1.53904118]
[1752088249920,3.38254203,666.06,665.54,1.53904118]
[1752088250118,3.38254203,666.07,665.55,1.53904118]
[1752088250316,3.38254203,666.07,665.45,2.497]
[1752088250317,3.38254203,666.07,665.56,1.53904118]
[1752088250518,3.38254203,666.07,665.45,2.497]
[1752088250718,3.38254203,666.07,665.46,1.53893507]
[1752088250924,3.38254203,666.07,665.47,1.53893507]
[1752088251224,3.38254203,666.07,665.48,1.53893507]
[1752088251422,3.38254203,666.07,665.49,1.53893507]
[1752088251625,3.38254203,666.07,665.5,1.53893507]
[1752088251825,3.38254203,666.07,665.51,1.53893507]
[1752088252028,3.38254203,666.07,665.52,1.53893507]
[1752088252326,3.38254203,666.07,665.53,1.53893507]
[1752088252626,3.38254203,666.07,665.54,1.53893507]
[1752088252922,3.38254203,666.07,665.55,1.53893507]
[1752088253126,3.38254203,666.07,665.56,1.53893507]
[1752088253328,3.38254203,666.07,665.45,2.497]
[1752088253528,3.38254203,666.07,665.46,1.53856214]
[1752088253727,3.38254203,666.07,665.47,1.53856214]
[1752088253925,3.38254203,666.07,665.48,1.53856214]
[1752088254128,3.38254203,666.07,665.49,1.53856214]
[1752088254426,3.38254203,666.07,665.5,1.53856214]
[1752088254625,3.38254203,666.07,665.45,2.497]
[1752088254626,3.38254203,666.11,665.51,1.53856214]
[1752088254825,3.38254203,666.11,665.52,1.53856214]
[1752088255026,3.38254203,666.11,665.53,1.53856214]
[1752088255231,3.38254203,666.11,665.54,1.53856214]
[1752088255430,3.38254203,666.16,665.55,1.53856214]
[1752088255625,3.38254203,666.22,665.56,1.53856214]
[1752088255830,3.38254203,666.23,665.57,1.53856214]
[1752088256128,3.38254203,666.23,665.58,1.53856214]
[1752088256330,3.38254203,666.24,665.59,1.53856214]
[1752088256528,3.38254203,666.24,665.6,1.53856214]
[1752088256728,3.38254203,666.24,665.61,1.53856214]
[1752088256930,3.38254203,666.24,665.45,2.497]
[1752088256931,3.38254203,666.24,665.62,1.53856214]
[1752088257129,3.38254203,666.24,665.63,1.53856214]
[1752088257327,3.38254203,666.24,665.45,2.497]
[1752088257532,3.38254203,666.25,665.46,1.53789852]
[1752088257731,3.38254203,666.25,665.47,1.53789852]
[1752088257933,3.38254203,666.25,665.48,1.53789852]
[1752088258131,3.38254203,666.25,665.49,1.53789852]
[1752088258327,3.38254203,666.25,665.5,1.53789852]
[1752088258633,3.38254203,666.25,665.51,1.53789852]
[1752088258828,3.38254203,666.25,665.52,1.53789852]
[1752088259032,3.38254203,666.25,665.53,1.53789852]
[1752088259329,3.38254203,666.25,665.54,1.53789852]
[1752088259528,3.38254203,666.25,665.55,1.53789852]
[1752088259732,3.38254203,666.25,665.56,1.53789852]
[1752088259930,3.38254203,666.25,665.57,1.53789852]
[1752088260129,3.38254203,666.29,665.58,1.53789852]
[1752088260328,3.38254203,666.29,665.59,1.53789852]
[1752088260531,3.38254203,666.29,665.6,1.53789852]
[1752088260733,3.38254203,666.29,665.61,1.53789852]
[1752088260933,3.38254203,666.29,665.62,1.53789852]
[1752088261133,3.38254203,666.29,665.63,1.53789852]
[1752088261334,3.38254203,666.29,665.64,1.53789852]
[1752088261536,3.38254203,666.29,665.65,1.53789852]
[1752088261737,3.38254203,666.29,665.66,1.53789852]
[1752088261936,3.38254203,666.29,665.45,2.497]
[1752088262134,3.38254203,666.29,665.46,1.53740355]
[1752088262436,3.38254203,666.29,665.47,1.53740355]
[1752088262637,3.38254203,666.29,665.48,1.53740355]
[1752088262834,3.38254203,666.29,665.49,1.53740355]
[1752088263035,3.38254203,666.29,665.5,1.53740355]
[1752088263234,3.38254203,666.29,665.51,1.53740355]
[1752088263439,3.38254203,666.29,665.52,1.53740355]
[1752088263636,3.38254203,666.29,665.53,1.53740355]
[1752088263836,3.38254203,666.29,665.54,1.53740355]
[1752088264039,3.38254203,666.29,665.55,1.53740355]
[1752088264238,3.64386803,666.3,665.56,1.53740355]
[1752088264440,3.64386803,666.3,665.57,1.53740355]
[1752088264441,3.38254203,666.29,665.57,1.53740355]
[1752088264641,3.38254203,666.27,665.58,1.53740355]
[1752088264941,3.38254203,666.27,665.59,1.53740355]
[1752088265137,3.38254203,666.27,665.6,1.53740355]
[1752088265342,3.38254203,666.27,665.61,1.53740355]
[1752088265641,3.38254203,666.2,665.62,1.53740355]
[1752088265836,3.38254203,666.22,665.63,1.53740355]
[1752088266038,3.38254203,666.22,665.64,1.53740355]
[1752088266240,3.38254203,666.22,665.65,1.53740355]
[1752088266538,3.38254203,666.26,665.66,1.53740355]
[1752088266739,3.38254203,666.26,665.45,2.497]
[1752088266938,3.38254203,666.26,665.46,1.5372531]
[1752088267137,3.38254203,666.26,665.47,1.5372531]
[1752088267336,3.38254203,666.26,665.48,1.5372531]
[1752088267540,3.38254203,666.26,665.49,1.5372531]
[1752088267740,3.38254203,666.26,665.5,1.5372531]
[1752088267936,3.38254203,666.26,665.51,1.5372531]
[1752088268141,3.38254203,666.26,665.52,1.5372531]
[1752088268338,3.38254203,666.26,665.53,1.5372531]
[1752088268537,3.38254203,666.26,665.54,1.5372531]
[1752088268743,3.38254203,666.26,665.55,1.5372531]
[1752088268937,3.38254203,666.26,665.45,2.497]
[1752088268938,3.38254203,666.26,665.56,1.5372531]
[1752088269141,3.38254203,666.26,665.57,1.5372531]
[1752088269438,3.38254203,666.26,665.58,1.5372531]
[1752088269641,3.38254203,666.26,665.59,1.5372531]
[1752088269838,3.38254203,666.26,665.6,1.5372531]
[1752088270141,3.38254203,666.26,665.61,1.5372531]
[1752088270337,3.38254203,666.26,665.62,1.5372531]
[1752088270541,3.38254203,666.26,665.63,1.5372531]
[1752088270743,3.38254203,666.26,665.64,1.5372531]
[1752088270942,3.38254203,666.26,665.65,1.5372531]
[1752088271141,3.38254203,666.26,665.66,1.5372531]
[1752088271337,3.38254203,666.25,665.45,2.497]
[1752088271537,3.38254203,666.25,665.46,1.53740042]
[1752088271742,3.38254203,666.25,665.47,1.53740042]
[1752088271943,3.38254203,666.25,665.48,1.53740042]
[1752088272140,3.38254203,666.25,665.49,1.53740042]
[1752088272343,3.38254203,666.25,665.5,1.53740042]
[1752088272540,3.38254203,666.25,665.51,1.53740042]
[1752088272740,3.38254203,666.25,665.52,1.53740042]
[1752088272944,3.38254203,666.25,665.53,1.53740042]
[1752088273245,3.38254203,666.25,665.54,1.53740042]
[1752088273445,3.38254203,666.25,665.55,1.53740042]
[1752088273744,3.38254203,666.25,665.56,1.53740042]
[1752088273946,3.38254203,666.25,665.57,1.53740042]
[1752088274141,3.38254203,666.25,665.58,1.53740042]
[1752088274344,3.38254203,666.25,665.59,1.53740042]
[1752088274541,3.38254203,666.25,665.6,1.53740042]
[1752088274744,3.38254203,666.25,665.61,1.53740042]
[1752088275040,3.38254203,666.25,665.62,1.53740042]
[1752088275239,3.38254203,666.25,665.63,1.53740042]
[1752088275541,3.38254203,666.24,665.64,1.53740042]
[1752088275741,3.38254203,666.24,665.65,1.53740042]
[1752088275942,3.38254203,666.24,665.66,1.53740042]
[1752088276146,3.38254203,666.24,665.67,1.53740042]
[1752088276342,0.261326,666.3,665.48,1.69074951]
[1752088276343,3.38254203,666.18,665.48,1.69074951]
[1752088276542,3.38254203,666.18,665.49,1.53785471]
[1752088276842,3.38254203,666.18,665.5,1.53785471]
[1752088277041,3.38254203,666.18,665.51,1.53785471]
[1752088277245,3.38254203,666.18,665.52,1.53785471]
[1752088277442,3.38254203,666.18,665.53,1.53785471]
[1752088277647,3.38254203,666.18,665.54,1.53785471]
[1752088277946,3.38254203,666.18,665.55,1.53785471]
[1752088278143,3.38254203,666.18,665.56,1.53785471]
[1752088278347,3.38254203,666.18,665.57,1.53785471]
[1752088278542,3.38254203,666.18,665.58,1.53785471]
[1752088278744,3.38254203,666.18,665.59,1.53785471]
[1752088278944,3.38254203,666.18,665.6,1.53785471]
[1752088279245,3.38254203,666.18,665.61,1.53785471]
[1752088279548,3.38254203,666.18,665.62,1.53785471]
[1752088279748,3.38254203,666.18,665.63,1.53785471]
[1752088279949,3.38254203,666.18,665.64,1.53785471]
[1752088280149,3.38254203,666.19,665.65,1.53785471]
[1752088280347,3.38254203,666.18,665.66,1.53785471]
[1752088280549,0.261326,666.3,665.67,1.53785471]
[1752088280746,0.261326,666.3,665.68,1.53785471]
[1752088281046,0.261326,666.3,665.69,1.53785471]
[1752088281248,0.261326,666.3,665.7,1.53785471]
[1752088281449,0.261326,666.3,665.71,1.53785471]
[1752088281647,0.261326,666.3,665.45,2.497]
[1752088281847,0.261326,666.3,665.46,1.53911273]
[1752088282047,0.261326,666.3,665.47,1.53911273]
[1752088282247,0.261326,666.3,665.48,1.53911273]
[1752088282446,0.261326,666.3,665.49,1.53911273]
[1752088282647,0.261326,666.3,665.5,1.53911273]
[1752088282845,0.261326,666.3,665.51,1.53911273]
[1752088283049,0.261326,666.3,665.52,1.53911273]
[1752088283247,0.261326,666.3,665.53,1.53911273]
[1752088283547,0.261326,666.3,665.54,1.53911273]
[1752088283744,0.261326,666.3,665.55,1.53911273]
[1752088283946,0.261326,666.3,665.56,1.53911273]
[1752088284147,0.261326,666.3,665.57,1.53911273]
[1752088284349,0.261326,666.3,665.58,1.53911273]
[1752088284547,0.261326,666.3,665.59,1.53911273]
[1752088284747,0.261326,666.3,665.6,1.53911273]
[1752088284945,0.261326,666.3,665.61,1.53911273]
[1752088285144,0.261326,666.3,665.62,1.53911273]
[1752088285346,0.261326,666.3,665.63,1.53911273]
[1752088285546,0.261326,666.3,665.64,1.53911273]
[1752088285750,0.261326,666.3,665.37,1.69074951]
[1752088285751,0.261326,666.3,665.65,1.53911273]
[1752088286050,0.261326,666.3,665.66,1.53911273]
[1752088286346,0.261326,666.3,665.67,1.53911273]
[1752088286550,0.261326,666.3,665.68,1.53911273]
[1752088286751,0.261326,666.3,665.69,1.53911273]
[1752088287048,0.261326,666.3,665.7,1.53911273]
[1752088287248,0.261326,666.3,665.71,1.53911273]
[1752088287449,0.261326,666.3,665.72,1.53911273]
[1752088287751,0.261326,666.3,665.7,2.794]
[1752088287948,0.261326,666.3,665.71,1.53970561]
[1752088288148,0.261326,666.3,665.72,1.53970561]
[1752088288352,0.261326,666.3,665.73,1.53970561]
[1752088288549,0.261326,666.3,665.7,2.794]
[1752088288853,0.261326,666.3,665.71,1.53977651]
[1752088289053,0.261326,666.3,665.72,1.53977651]
[1752088289349,0.261326,666.3,665.73,1.53977651]
[1752088289653,0.261326,666.3,665.7,2.794]
[1752088289855,0.261326,666.3,665.71,1.53985515]
[1752088290054,0.261326,666.3,665.7,2.794]
[1752088290555,3.38254203,666.24,665.7,2.794]
[1752088291356,3.38254203,666.25,665.7,2.794]
[1752088292353,3.38254203,666.24,665.7,2.794]
[1752088297855,3.38254203,666.23,665.7,2.794]
[1752088299160,3.38254203,666.22,665.7,2.794]
[1752088300059,3.38254203,666.17,665.7,2.794]
[1752088300455,3.38254203,666.16,665.7,2.794]
[1752088301262,3.38254203,666.11,665.7,2.794]
[1752088301960,3.38254203,666.18,665.7,2.794]
[1752088303260,3.38254203,666.17,665.7,2.794]
[1752088305059,3.38254203,666.11,665.7,2.794]
[1752088306060,3.38254203,666.14,665.7,2.794]
[1752088306262,3.38254203,666.15,665.7,2.794]
[1752088306456,3.38254203,666.16,665.7,2.794]
[1752088306963,3.38254203,666.17,665.7,2.794]
[1752088307259,3.38254203,666.16,665.7,2.794]
[1752088309058,3.38254203,666.18,665.71,1.54172639]
[1752088309258,3.38254203,666.2,665.7,2.794]
[1752088309561,3.38254203,666.19,665.71,1.54180882]
[1752088309760,3.38254203,666.19,665.7,2.794]
[1752088309962,3.38254203,666.19,665.71,1.54184366]
[1752088310156,3.38254203,666.26,665.72,1.54184366]
[1752088310458,3.38254203,666.26,665.73,1.54184366]
[1752088310758,3.38254203,666.26,665.74,1.54184366]
[1752088310957,3.38254203,666.26,665.75,1.54184366]
[1752088311257,3.38254203,666.28,665.76,1.54184366]
[1752088311461,3.38254203,666.28,665.77,1.54184366]
[1752088311661,3.38254203,666.28,665.78,1.54184366]
[1752088311857,0.261326,666.3,665.7,2.794]
[1752088311858,3.38254203,666.27,665.7,2.794]
[1752088312161,3.38254203,666.28,665.71,1.54242924]
[1752088312361,3.38254203,666.27,665.72,1.54242924]
[1752088312662,3.38254203,666.27,665.73,1.54242924]
[1752088312861,3.38254203,666.27,665.74,1.54242924]
[1752088313061,3.38254203,666.27,665.7,2.794]
[1752088313062,3.38254203,666.27,665.75,1.54242924]
[1752088313358,3.38254203,666.27,665.76,1.54242924]
[1752088313556,3.38254203,666.27,665.77,1.54242924]
[1752088313761,3.38254203,666.27,665.78,1.54242924]
[1752088313958,3.38254203,666.27,665.79,1.54242924]
[1752088314161,3.38254203,666.27,665.7,2.794]
[1752088314360,3.38254203,666.27,665.71,1.54265597]
[1752088314568,3.38254203,666.27,665.72,1.54265597]
[1752088314867,3.38254203,666.26,665.73,1.54265597]
[1752088315162,3.38254203,666.26,665.7,2.794]
[1752088315163,3.38254203,666.26,665.74,1.54265597]
[1752088315464,3.38254203,666.25,665.75,1.54265597]
[1752088315662,3.38254203,666.25,665.76,1.54265597]
[1752088315866,3.38254203,666.25,665.77,1.54265597]
[1752088316060,3.38254203,666.25,665.7,2.794]
[1752088316061,3.38254203,666.25,665.78,1.54265597]
[1752088316273,3.38254203,666.24,665.79,1.54265597]
[1752088316474,3.38254203,666.24,665.7,2.794]
[1752088316773,3.38254203,666.24,665.71,1.54301101]
[1752088316972,3.38254203,666.24,665.72,1.54301101]
[1752088317169,3.38254203,666.24,665.73,1.54301101]
[1752088317373,3.38254203,666.24,665.74,1.54301101]
[1752088317572,3.38254203,666.25,665.75,1.54301101]
[1752088317774,3.38254203,666.25,665.76,1.54301101]
[1752088317978,3.38254203,666.25,665.77,1.54301101]
[1752088318270,3.38254203,666.25,665.7,2.794]
[1752088318271,3.38254203,666.25,665.78,1.54301101]
[1752088318472,3.38254203,666.25,665.79,1.54301101]
[1752088318672,3.38254203,666.25,665.7,2.794]
[1752088318876,3.38254203,666.23,665.71,1.54295017]
[1752088319077,3.38254203,666.23,665.72,1.54295017]
[1752088319375,3.38254203,666.22,665.73,1.54295017]
[1752088319675,3.38254203,666.22,665.74,1.54295017]
[1752088319872,3.38254203,666.22,665.75,1.54295017]
[1752088320075,3.38254203,666.22,665.76,1.54295017]
[1752088320273,3.38254203,666.2,665.77,1.54295017]
[1752088320478,3.38254203,666.2,665.7,2.794]
[1752088320677,3.38254203,666.2,665.71,1.54292252]
[1752088320876,3.38254203,666.2,665.72,1.54292252]
[1752088321074,3.38254203,666.16,665.73,1.54292252]
[1752088321379,3.38254203,666.16,665.74,1.54292252]
[1752088321678,3.38254203,666.16,665.75,1.54292252]
[1752088321875,3.38254203,666.16,665.76,1.54292252]
[1752088322080,3.38254203,666.15,665.77,1.54292252]
[1752088322276,3.38254203,666.15,665.7,2.794]
[1752088322482,3.38254203,666.15,665.71,1.54295695]
[1752088322677,3.38254203,666.15,665.72,1.54295695]
[1752088322881,3.38254203,666.15,665.73,1.54295695]
[1752088323178,3.38254203,666.15,665.74,1.54295695]
[1752088323383,3.38254203,666.15,665.75,1.54295695]
[1752088323577,3.38254203,666.15,665.76,1.54295695]
[1752088323778,3.38254203,666.15,665.77,1.54295695]
[1752088323978,3.38254203,666.15,665.7,2.794]
[1752088324182,3.38254203,666.15,665.71,1.54293575]
[1752088324479,3.38254203,666.15,665.72,1.54293575]
[1752088324676,3.38254203,666.15,665.73,1.54293575]
[1752088324877,3.38254203,666.15,665.74,1.54293575]
[1752088325084,3.38254203,666.15,665.7,2.794]
[1752088325085,3.38254203,666.15,665.75,1.54293575]
[1752088325280,3.38254203,666.15,665.76,1.54293575]
[1752088325481,3.38254203,666.15,665.77,1.54293575]
[1752088325682,3.38254203,666.15,665.7,2.794]
[1752088325980,3.38254203,666.15,665.71,1.54289882]
[1752088326282,3.38254203,666.15,665.72,1.54289882]
[1752088326481,3.38254203,666.15,665.73,1.54289882]
[1752088326683,3.38254203,666.15,665.74,1.54289882]
[1752088326980,3.38254203,666.15,665.75,1.54289882]
[1752088327178,3.38254203,666.15,665.76,1.54289882]
[1752088327478,3.38254203,666.15,665.77,1.54289882]
[1752088327683,3.38254203,666.15,665.7,2.794]
[1752088327883,3.38254203,666.15,665.71,1.54286821]
[1752088328083,3.38254203,666.15,665.72,1.54286821]
[1752088328282,3.38254203,666.15,665.73,1.54286821]
[1752088328484,3.38254203,666.15,665.74,1.54286821]
[1752088328682,3.38254203,666.15,665.75,1.54286821]
[1752088328882,3.38254203,666.15,665.76,1.54286821]
[1752088329085,3.38254203,666.15,665.77,1.54286821]
[1752088329283,3.38254203,666.15,665.7,2.794]
[1752088329484,3.38254203,666.15,665.71,1.54284328]
[1752088329683,3.38254203,666.15,665.72,1.54284328]
[1752088329881,3.38254203,666.15,665.73,1.54284328]
[1752088330083,3.38254203,666.15,665.7,2.794]
[1752088330084,3.38254203,666.17,665.74,1.54284328]
[1752088330283,3.38254203,666.17,665.75,1.54284328]
[1752088330487,3.38254203,666.17,665.76,1.54284328]
[1752088330688,3.38254203,666.17,665.77,1.54284328]
[1752088330988,0.261326,666.3,665.7,2.794]
[1752088330989,3.38254203,666.18,665.78,1.54284328]
[1752088331288,3.38254203,666.18,665.7,2.794]
[1752088331588,3.38254203,666.19,665.71,1.54282349]
[1752088331788,3.38254203,666.19,665.72,1.54282349]
[1752088331985,3.38254203,666.19,665.73,1.54282349]
[1752088332189,3.38254203,666.19,665.7,2.794]
[1752088332388,3.38254203,666.19,665.71,1.54295906]
[1752088332590,3.38254203,666.19,665.72,1.54295906]
[1752088332887,3.38254203,666.19,665.73,1.54295906]
[1752088333084,3.38254203,666.19,665.74,1.54295906]
[1752088333386,3.38254203,666.19,665.75,1.54295906]
[1752088333585,3.38254203,666.19,665.76,1.54295906]
[1752088333883,3.38254203,666.19,665.77,1.54295906]
[1752088334087,3.38254203,666.19,665.7,2.794]
[1752088334088,3.38254203,666.19,665.78,1.54295906]
[1752088334389,3.38254203,666.19,665.7,2.794]
[1752088334584,3.38254203,666.19,665.71,1.54294447]
[1752088334784,3.38254203,666.19,665.72,1.54294447]
[1752088335085,3.38254203,666.19,665.73,1.54294447]
[1752088335388,3.38254203,666.19,665.74,1.54294447]
[1752088335585,3.38254203,666.19,665.75,1.54294447]
[1752088335787,3.38254203,666.2,665.76,1.54294447]
[1752088335986,3.38254203,666.2,665.77,1.54294447]
[1752088336185,3.38254203,666.2,665.78,1.54294447]
[1752088336385,3.38254203,666.2,665.7,2.794]
[1752088336585,3.38254203,666.2,665.71,1.54293455]
[1752088336788,3.38254203,666.2,665.72,1.54293455]
[1752088336987,3.38254203,666.2,665.73,1.54293455]